[Event "Mitropa Cup Women 2019"]
[Site "Radenci"]
[Date "2019.06.04"]
[Round "9.9"]
[White "Georgescu, Lena"]
[Black "Motycakova, Monika"]
[Result "1-0"]
[ECO "C99"]
[WhiteElo "2191"]
[BlackElo "2150"]
[Annotator "RC"]
[PlyCount "125"]
[EventDate "2019.05.27"]
[EventType "team-tourn"]
[EventCountry "SLO"]
[SourceTitle "playchess.com"]
[Source "ChessBase"]
[SourceQuality "1"]
[WhiteTeam "Switzerland"]
[BlackTeam "Slovakia"]
[WhiteTeamCountry "SUI"]
[BlackTeamCountry "SVK"]
[TimeControl "40/5400+30:1800+30"]

1. e4 {[%emt 0:00:00]} e5 {[%emt 0:00:00]} 2. Nf3 {[%emt 0:00:00]} Nc6 {[%emt 0:00:00]} 3. Bb5 {[%emt 0:00:00]} a6 {[%emt 0:00:04]} 4. Ba4 {[%emt 0:00:00]} Nf6 {[%emt 0:00:08]} 5. O-O {[%emt 0:00:00]} Be7 {[%emt 0:00:09]} 6. Re1 {[%emt 0:00:00]} b5 {[%emt 0:00:07]} 7. Bb3 {[%emt 0:00:04]} d6 {[%emt 0:00:04]} 8. c3 {[%emt 0:00:10]} O-O {[%emt 0:00:33]} 9. h3 {[%emt 0:00:05]} Na5 {[%emt 0:00:27]} 10. Bc2 {[%emt 0:00:05]} c5 {[%emt 0:00:05]} 11. d4 {[%emt 0:00:04]} Qc7 {[%emt 0:00:17]} 12. Nbd2 {[%emt 0:00:07]} cxd4 {[%emt 0:00:13]} 13. cxd4 {[%emt 0:00:07]} Rd8 {[%emt 0:00:05]} 14. b3 {[%emt 0:12:19]} Nc6 {[%emt 0:01:40]} 15. Bb2 {[%emt 0:01:22]} Bb7 {[%emt 0:01:11]} 16. Rc1 {[%emt 0:02:38]} Qb6 {[%emt 0:05:00]} 17. Nf1 {[%emt 0:09:15]} d5 {[%emt 0:16:25]} 18. exd5 {[%emt 0:04:52]} Rxd5 {[%emt 0:14:03]} 19. Ne3 {[%emt 0:06:34]} Rdd8 {[%emt 0:06:03]} 20. d5 {[%emt 0:06:01]} Nb4 {[%emt 0:15:29]} 21. Nxe5 {[%emt 0:05:46]} Nbxd5 {[%emt 0:07:10]} 22. Nxd5 {[%emt 0:05:40]} Rxd5 {[%emt 0:04:25]} 23. Qe2 {[%emt 0:01:22]} Bb4 {[%emt 0:08:07]} 24. Red1 {[%emt 0:07:48]} Re8 {[%emt 0:02:58]} 25. Rxd5 {[%emt 0:06:54]} Bxd5 {[%emt 0:00:06]} 26. Qd3 {[%emt 0:02:29]} Be4 {[%emt 0:12:13]} 27. Qe2 {[%emt 0:01:29]} Bxc2 {[%emt 0:01:24]} 28. Qxc2 {[%emt 0:00:52]} Bd6 {[%emt 0:02:44]} 29. Nf3 {[%emt 0:04:06]} Bf4 {[%emt 0:01:54]} 30. Rd1 {[%emt 0:01:47]} h6 {[%emt 0:00:37]} 31. Bd4 {[%emt 0:06:53]} Qe6 {[%emt 0:00:35]} 32. Kf1 {[%emt 0:03:16]} Rc8 {[%emt 0:00:37]} 33. Qd3 {[%emt 0:02:08]} Rc1 {[%emt 0:01:00]} 34. Rxc1 {[%emt 0:00:49]} Bxc1 {[%emt 0:00:04]} 35. Qc3 {[%emt 0:01:11]} Bf4 {[%emt 0:00:50]} 36. Bxf6 {[%emt 0:02:09]} Qxf6 {[%emt 0:00:12]} 37. Qxf6 {[%emt 0:01:12]} gxf6 {[%emt 0:00:04]} 38. Ke2 {[%emt 0:00:10]} Kf8 {[%emt 0:00:39]} 39. Kd3 {[%emt 0:00:27]} Ke7 {[%emt 0:00:11]} 40. Ke4 {[%emt 0:00:00]} Bc1 {[%emt 0:00:00]} 41. Kd5 {[%emt 0:03:03]} Kd7 {[%emt 0:02:58]} 42. Nd4 {[%emt 0:01:38]} Ba3 {[%emt 0:08:47]} 43. Nf5 {[%emt 0:01:06]} Bf8 {[%emt 0:00:21]} 44. g4 {[%emt 0:07:30]} Kc7 {[%emt 0:03:09]} 45. h4 {[%emt 0:01:45]} Kd7 {[%emt 0:05:39]} 46. h5 {[%emt 0:03:30]} Kc7 {[%emt 0:00:44]} 47. f4 {[%emt 0:04:09]} Kd7 {[%emt 0:09:38]} 48. g5 {[%emt 0:06:56]} fxg5 {[%emt 0:00:05]} 49. fxg5 {[%emt 0:00:03]} hxg5 {[%emt 0:00:11]} 50. h6 {[%emt 0:00:05]} Bxh6 {[%emt 0:00:27]} 51. Nxh6 {[%emt 0:00:04]} f6 {[%emt 0:01:12]} 52. b4 {[%emt 0:07:45]} Ke7 {[%emt 0:01:00]} 53. a3 {[%emt 0:01:32]} Kd7 {[%emt 0:00:47]} 54. Nf5 {[%emt 0:00:58]} g4 {[%emt 0:01:14]} 55. Kd4 {[%emt 0:01:52]} Ke6 {[%emt 0:02:23]} 56. Ke4 {[%emt 0:00:04]} Kf7 {[%emt 0:00:20]} 57. Kf4 {[%emt 0:03:04]} Ke6 {[%emt 0:00:12]} 58. Ne3 {[%emt 0:01:25]} g3 {[%emt 0:00:54]} 59. Ke4 {[%emt 0:01:10]} f5+ {[%emt 0:00:54]} 60. Nxf5 {[%emt 0:00:57]} g2 {[%emt 0:00:04]} 61. Nd4+ {[%emt 0:00:10]} Kd6 {[%emt 0:00:16]} 62. Ne2 {[%emt 0:00:47]} Ke6 {[%emt 0:00:04]} 63. Nf4+ {[%emt 0:00:04] Kd5+} 1-0

[Event "Mitropa Cup Women 2019"]
[Site "Radenci"]
[Date "2019.06.04"]
[Round "9.11"]
[White "Hund, Sarah"]
[Black "Sankova, Stella"]
[Result "0-1"]
[ECO "B23"]
[WhiteElo "2016"]
[BlackElo "2013"]
[Annotator "NA RC"]
[PlyCount "70"]
[EventDate "2019.05.27"]
[EventType "team-tourn"]
[EventCountry "SLO"]
[SourceTitle "playchess.com"]
[Source "ChessBase"]
[SourceQuality "1"]
[WhiteTeam "Switzerland"]
[BlackTeam "Slovakia"]
[WhiteTeamCountry "SUI"]
[BlackTeamCountry "SVK"]
[TimeControl "40/5400+30:1800+30"]

1. e4 {[%emt 0:00:00]} c5 {[%emt 0:00:00]} 2. Nc3 {[%emt 0:00:08]} g6 {[%emt 0:00:00]} 3. Bc4 {[%emt 0:00:31]} Nc6 {[%emt 0:00:18]} 4. d3 {[%emt 0:00:58]} Bg7 {[%emt 0:00:20]} 5. a3 {[%emt 0:00:51]} a6 {[%emt 0:07:44]} (5... d6 6. h4 Nf6 7. Nge2 h5 8. Bg5 Nd4 9. Nxd4 cxd4 10. Nd5 Nxd5 11. Bxd5 {1-0 (62) Carlsen,M (2832)-Guseinov,G (2645) chess.com INT 2017}) 6. Be3 {[%emt 0:02:57] B23: Closed Sicilian: Lines without g3} d6 {[%emt 0:01:48]} 7. Nf3 {[%emt 0:02:52]} Nf6 {[%emt 0:01:56]} 8. h3 $146 {[%emt 0:02:41]} ({Predecessor:} 8. O-O O-O 9. Qd2 Ng4 10. h3 Nxe3 11. Qxe3 Nd4 12. Nxd4 cxd4 13. Qe2 dxc3 14. b3 {0-1 (32) Gyongyosi,P (993)-Kratky,J (1164) LSS email 2012}) 8... b5 {[%emt 0:01:50]} 9. Ba2 {[%emt 0:02:18]} O-O {[%emt 0:03:43]} 10. O-O {[%emt 0:02:04]} Ne8 {[%emt 0:03:39]} 11. Qd2 {[%emt 0:03:39]} Nc7 {[%emt 0:02:58]} 12. Rab1 {[%emt 0:09:20]} a5 {[%emt 0:03:20]} 13. Ng5 {[%emt 0:09:39]} b4 {[%emt 0:17:13]} 14. Nd5 {[%emt 0:05:12]} Nb5 {[%emt 0:01:47]} 15. Bc4 {[%emt 0:04:03]} Rb8 {[%emt 0:02:57]} 16. a4 {[%emt 0:03:31]} Nbd4 {[%emt 0:04:15]} 17. c3 {[%emt 0:02:35]} e6 {[%emt 0:00:34]} 18. cxd4 {[%emt 0:09:17]} exd5 {[%emt 0:01:06]} 19. Bxd5 {[%emt 0:00:28]} Nxd4 $11 {[%emt 0:00:19]} 20. Bxd4 {[%emt 0:05:27]} Bxd4 {[%emt 0:00:46]} 21. Nf3 {[%emt 0:00:27]} Qf6 {[%emt 0:03:51]} 22. Nh2 {[%emt 0:02:22]} Bd7 {[%emt 0:11:18]} 23. Ng4 {[%emt 0:03:13]} Bxg4 {[%emt 0:00:45]} 24. hxg4 {[%emt 0:00:07]} Qh4 {[%emt 0:01:35]} 25. Qe2 {[%emt 0:01:51]} Kg7 {[%emt 0:03:15]} 26. Qf3 {[%emt 0:04:43]} Rbe8 {[%emt 0:02:42]} 27. g3 {[%emt 0:02:09]} Qh3 {[%emt 0:02:25]} 28. b3 {[%emt 0:02:41]} f6 {[%emt 0:04:43]} 29. Rbe1 {[%emt 0:02:26]} Re5 {[%emt 0:02:24]} 30. Re2 {[%emt 0:08:41]} h5 {[%emt 0:04:31]} 31. Qg2 {[%emt 0:02:57]} Qxg4 {[%emt 0:00:46]} 32. Rfe1 {[%emt 0:00:50]} Rh8 {[%emt 0:04:46]} 33. Kf1 {[%emt 0:01:55]} h4 {[%emt 0:01:15]} 34. gxh4 {[%emt 0:00:59]} Qxh4 {[%emt 0:00:33]} 35. f4 {[%emt 0:02:09]} Qxf4+ {[%emt 0:00:24]} 0-1

[Event "Mitropa Cup Women 2019"]
[Site "Radenci"]
[Date "2019.06.04"]
[Round "9.12"]
[White "Milcova, Zuzana"]
[Black "Pellicoro, Nathalie"]
[Result "0-1"]
[ECO "B22"]
[WhiteElo "2093"]
[BlackElo "1893"]
[Annotator "NA RC"]
[PlyCount "96"]
[EventDate "2019.05.27"]
[EventType "team-tourn"]
[EventCountry "SLO"]
[SourceTitle "playchess.com"]
[Source "ChessBase"]
[SourceQuality "1"]
[WhiteTeam "Slovakia"]
[BlackTeam "Switzerland"]
[WhiteTeamCountry "SVK"]
[BlackTeamCountry "SUI"]
[TimeControl "40/5400+30:1800+30"]

1. e4 {[%emt 0:00:00]} c5 {[%emt 0:00:00]} 2. c3 {[%emt 0:00:00]} d5 {[%emt 0:00:00]} 3. exd5 {[%emt 0:00:00]} Qxd5 {[%emt 0:00:42]} 4. d4 {[%emt 0:00:00]} Nf6 {[%emt 0:01:26]} 5. Nf3 {[%emt 0:00:00]} e6 {[%emt 0:01:08]} 6. Be3 {[%emt 0:01:56]} Nc6 {[%emt 0:06:04]} 7. Be2 {[%emt 0:02:01] B22: Sicilian: 2 c3} Ng4 {[%emt 0:03:15]} (7... cxd4 8. cxd4 Bb4+ 9. Nc3 O-O 10. O-O Qa5 11. Qb3 b6 12. Rfd1 Bxc3 13. bxc3 Ba6 14. c4 Qb4 {1-0 (48) Vachier Lagrave,M (2762)-Polgar,J (2685) Dubai 2014}) 8. Bf4 {[%emt 0:08:06]} cxd4 {[%emt 0:04:14]} 9. cxd4 {[%emt 0:01:19]} Bb4+ {[%emt 0:09:44]} 10. Bd2 $146 {[%emt 0:26:44]} ({Predecessor:} 10. Nc3 Qa5 11. Qb3 O-O 12. h3 Nf6 13. O-O Rd8 14. Nb5 Nd5 {0-1 (30) Groz,J (2050)-Chomier,F (2020) Aurec 2002}) 10... Bxd2+ {[%emt 0:02:11]} 11. Qxd2 {[%emt 0:00:25]} Nf6 {[%emt 0:02:01]} 12. Nc3 {[%emt 0:01:24]} Qd8 {[%emt 0:02:13]} 13. O-O {[%emt 0:01:55]} O-O {[%emt 0:00:25]} 14. Rad1 {[%emt 0:03:25]} Ne7 {[%emt 0:03:19]} 15. Bd3 {[%emt 0:03:35]} Ned5 {[%emt 0:02:03]} 16. Rfe1 $1 {[%emt 0:01:45]} b6 {[%emt 0:01:53]} 17. Ne5 {[%emt 0:11:28]} Bb7 {[%emt 0:02:21]} 18. Bb1 {[%emt 0:07:54]} Rc8 {[%emt 0:03:30]} 19. Ne2 {[%emt 0:05:29]} Qd6 {[%emt 0:03:15]} 20. a3 {[%emt 0:01:08]} Rfd8 {[%emt 0:03:15]} 21. Qg5 {[%emt 0:05:17]} Ne7 {[%emt 0:11:06]} 22. Ng3 {[%emt 0:04:50]} Ng6 {[%emt 0:05:27]} 23. Nh5 {[%emt 0:05:21]} Nxh5 {[%emt 0:05:52]} 24. Qxh5 {[%emt 0:00:10]} Bxg2 {[%emt 0:01:42]} 25. Re3 {[%emt 0:05:05]} Bb7 {[%emt 0:06:39]} 26. Bxg6 {[%emt 0:03:00]} hxg6 {[%emt 0:00:50]} 27. Qe2 {[%emt 0:00:37] [#]} Qd5 $1 {[%emt 0:00:50]} 28. f3 $19 {[%emt 0:00:17]} (28. Qf3 {only move.} f6 29. Qxd5 Rxd5 30. Nf3) 28... Rc7 {[%emt 0:01:19]} 29. Kf2 {[%emt 0:00:36]} Rdc8 {[%emt 0:00:19]} 30. Rd2 {[%emt 0:00:20]} b5 {[%emt 0:02:46]} 31. Re4 {[%emt 0:00:41]} a5 {[%emt 0:02:52]} 32. Kg3 {[%emt 0:00:29]} Qd6 {[%emt 0:00:56]} 33. Rf4 {[%emt 0:00:36]} g5 {[%emt 0:00:18]} 34. Rg4 {[%emt 0:00:28]} f6 {[%emt 0:00:07]} 35. Qxb5 {[%emt 0:00:38]} fxe5 {[%emt 0:00:18]} 36. Rxg5 {[%emt 0:00:10]} exd4+ {[%emt 0:00:38]} 37. f4 {[%emt 0:00:15]} Rf8 {[%emt 0:00:45]} 38. Rg4 {[%emt 0:00:22]} Bc8 {[%emt 0:03:51]} 39. Rf2 {[%emt 0:00:54]} d3 {[%emt 0:00:52]} 40. Qh5 {[%emt 0:00:00]} e5 {[%emt 0:00:00]} 41. fxe5 {[%emt 0:12:13]} Qc5 {[%emt 0:03:46]} 42. Rxf8+ {[%emt 0:06:44]} Qxf8 {[%emt 0:02:24]} 43. Rh4 {[%emt 0:10:55]} Bf5 {[%emt 0:02:55]} 44. Qh8+ {[%emt 0:02:28]} Kf7 {[%emt 0:00:02]} 45. Qh5+ {[%emt 0:00:44]} g6 {[%emt 0:00:58]} 46. Qg5 {[%emt 0:00:33]} Ke6 {[%emt 0:02:06]} 47. Qe3 {[%emt 0:00:28]} Qc5 {[%emt 0:01:21]} 48. Rd4 {[%emt 0:00:04]} Qxe5+ {[%emt 0:00:24]} 0-1

[Event "Mitropa Cup Women 2019"]
[Site "Radenci"]
[Date "2019.06.04"]
[Round "9.14"]
[White "Juhasz, Barbara"]
[Black "Santeramo, Alessia"]
[Result "1-0"]
[ECO "C89"]
[WhiteElo "2207"]
[BlackElo "2074"]
[Annotator "RC"]
[PlyCount "65"]
[EventDate "2019.05.27"]
[EventType "team-tourn"]
[EventCountry "SLO"]
[SourceTitle "playchess.com"]
[Source "ChessBase"]
[SourceQuality "1"]
[WhiteTeam "Hungary"]
[BlackTeam "Italy"]
[WhiteTeamCountry "HUN"]
[BlackTeamCountry "ITA"]
[TimeControl "40/5400+30:1800+30"]

1. e4 {[%emt 0:00:00]} e5 {[%emt 0:00:00]} 2. Nf3 {[%emt 0:00:00]} Nc6 {[%emt 0:00:00]} 3. Bb5 {[%emt 0:00:00]} a6 {[%emt 0:00:00]} 4. Ba4 {[%emt 0:00:03]} Nf6 {[%emt 0:00:08]} 5. O-O {[%emt 0:00:19]} Be7 {[%emt 0:00:15]} 6. Re1 {[%emt 0:00:50]} b5 {[%emt 0:00:14]} 7. Bb3 {[%emt 0:00:06]} O-O {[%emt 0:00:15]} 8. c3 {[%emt 0:00:12]} d5 {[%emt 0:00:41]} 9. d4 {[%emt 0:00:05]} Nxe4 {[%emt 0:03:25]} 10. dxe5 {[%emt 0:00:25]} Bc5 {[%emt 0:01:50]} 11. Qxd5 {[%emt 0:16:28]} Bxf2+ {[%emt 0:03:17]} 12. Kf1 {[%emt 0:01:28]} Bxe1 {[%emt 0:01:02]} 13. Qxe4 {[%emt 0:00:10]} Be6 {[%emt 0:05:51]} 14. Bc2 {[%emt 0:06:59]} g6 {[%emt 0:04:40]} 15. Qxe1 {[%emt 0:03:38]} f6 {[%emt 0:11:24]} 16. Bh6 {[%emt 0:03:12]} Re8 {[%emt 0:02:15]} 17. Nbd2 {[%emt 0:00:05]} Bc4+ {[%emt 0:18:45]} 18. Nxc4 {[%emt 0:05:49]} bxc4 {[%emt 0:00:05]} 19. Rd1 {[%emt 0:06:24]} Qc8 {[%emt 0:14:12]} 20. Be4 {[%emt 0:18:08]} Nxe5 {[%emt 0:01:21]} 21. Bxa8 {[%emt 0:10:35]} Nxf3 {[%emt 0:03:11]} 22. Bd5+ {[%emt 0:00:04]} Kh8 {[%emt 0:00:37]} 23. Qg3 {[%emt 0:00:29]} Ne5 {[%emt 0:00:27]} 24. Qf4 {[%emt 0:04:46]} Ng4 {[%emt 0:05:09]} 25. Bf3 {[%emt 0:00:39]} Ne3+ {[%emt 0:05:29]} 26. Kg1 {[%emt 0:00:43]} Nf5 {[%emt 0:00:15]} 27. g4 {[%emt 0:00:39]} c5 {[%emt 0:11:41]} 28. gxf5 {[%emt 0:00:09]} g5 {[%emt 0:00:05]} 29. Qd6 {[%emt 0:06:06]} Qxf5 {[%emt 0:00:34]} 30. Qd7 {[%emt 0:03:35]} Re1+ {[%emt 0:06:53]} 31. Kf2 {[%emt 0:00:11]} Re2+ {[%emt 0:00:28]} 32. Kxe2 {[%emt 0:00:09]} Qe5+ {[%emt 0:00:01]} 33. Kf1 {[%emt 0:00:16]} 1-0

[Event "Mitropa Cup Women 2019"]
[Site "Radenci"]
[Date "2019.06.04"]
[Round "9.16"]
[White "Gaal, Zsoka"]
[Black "Andolfatto, Maria"]
[Result "1/2-1/2"]
[ECO "A11"]
[WhiteElo "2044"]
[BlackElo "2041"]
[Annotator "NA RC"]
[PlyCount "113"]
[EventDate "2019.05.27"]
[EventType "team-tourn"]
[EventCountry "SLO"]
[SourceTitle "playchess.com"]
[Source "ChessBase"]
[SourceQuality "1"]
[WhiteTeam "Hungary"]
[BlackTeam "Italy"]
[WhiteTeamCountry "HUN"]
[BlackTeamCountry "ITA"]
[TimeControl "40/5400+30:1800+30"]

1. Nf3 {[%emt 0:00:00]} Nf6 {[%emt 0:00:00]} 2. g3 {[%emt 0:00:00]} d5 {[%emt 0:00:12]} 3. Bg2 {[%emt 0:00:00]} c6 {[%emt 0:00:24]} 4. c4 {[%emt 0:00:20]} dxc4 {[%emt 0:00:43]} 5. O-O {[%emt 0:00:47]} Nbd7 {[%emt 0:01:48]} 6. Qc2 {[%emt 0:01:14]} Nb6 {[%emt 0:00:23]} 7. Na3 {[%emt 0:00:19]} g6 {[%emt 0:03:24] A11: English Opening: 1...c6} 8. Nxc4 {[%emt 0:00:34]} Nxc4 {[%emt 0:01:47]} 9. Qxc4 {[%emt 0:00:02]} Bg7 {[%emt 0:00:24]} 10. d4 {[%emt 0:03:45]} (10. d3 O-O 11. Bd2 Nd5 12. Qc1 a5 13. Bh6 Bg4 14. Bxg7 Kxg7 15. Ne5 {½-½ (40) Aronian,L (2794)-Vitiugov,N (2735) Karlsruhe/Baden-Baden 2018}) 10... Be6 {[%emt 0:06:43]} 11. Qc2 {[%emt 0:01:57]} Bf5 $146 {[%emt 0:02:59]} ({Predecessor:} 11... Bd5 12. Bf4 O-O 13. Be5 Be4 14. Qb3 Qb6 15. Nd2 Bxg2 16. Kxg2 Nd5 17. Bxg7 Kxg7 18. e3 Rfe8 {½-½ (18) Goganov,A (2563)-Sjugirov,S (2652) Taganrog 2018}) 12. Qa4 {[%emt 0:01:50]} Be4 {[%emt 0:03:03]} 13. Bg5 {[%emt 0:12:49]} O-O {[%emt 0:03:50]} 14. Rac1 {[%emt 0:02:47]} h6 {[%emt 0:04:06]} 15. Bd2 {[%emt 0:02:54]} Nd5 {[%emt 0:03:26]} 16. Rfd1 {[%emt 0:02:39]} a5 {[%emt 0:08:38]} 17. Be1 {[%emt 0:10:38]} Qd6 {[%emt 0:07:11]} 18. Qc4 {[%emt 0:06:47]} Rfc8 {[%emt 0:05:31]} 19. Qc5 {[%emt 0:03:30]} Rc7 {[%emt 0:07:15]} 20. Ne5 {[%emt 0:07:46]} Bxg2 $11 {[%emt 0:03:53]} 21. Kxg2 {[%emt 0:00:35]} Bxe5 {[%emt 0:06:54]} 22. dxe5 {[%emt 0:00:33]} Qxc5 {[%emt 0:00:07]} 23. Rxc5 {[%emt 0:00:04]} Nb4 {[%emt 0:01:58]} 24. a3 {[%emt 0:02:18]} b6 {[%emt 0:00:34]} 25. Rc4 {[%emt 0:06:17]} Na6 {[%emt 0:00:06]} 26. Rdc1 {[%emt 0:05:12]} Rac8 {[%emt 0:02:25]} 27. Bd2 {[%emt 0:00:52]} c5 {[%emt 0:02:09]} 28. Bxh6 {[%emt 0:02:15]} b5 {[%emt 0:02:06]} 29. R4c2 {[%emt 0:04:24]} c4 {[%emt 0:00:35]} 30. Be3 {[%emt 0:00:41]} Rc6 {[%emt 0:00:48]} 31. Bd4 {[%emt 0:02:22]} Nc5 {[%emt 0:18:26]} 32. Bxc5 {[%emt 0:02:11]} Rxc5 {[%emt 0:00:01]} 33. f4 {[%emt 0:00:52]} b4 {[%emt 0:02:58]} 34. axb4 {[%emt 0:00:10]} axb4 {[%emt 0:00:01]} 35. Kf3 {[%emt 0:01:07]} Kf8 {[%emt 0:01:46]} 36. Ke3 {[%emt 0:04:58]} e6 {[%emt 0:00:27]} 37. h4 {[%emt 0:02:07]} Kg7 {[%emt 0:00:47]} 38. Ke4 {[%emt 0:02:25]} Kh6 {[%emt 0:00:30]} 39. Kf3 {[%emt 0:01:27]} R8c7 {[%emt 0:00:34]} 40. Kf2 {[%emt 0:00:00]} (40. e3 $16) 40... c3 {[%emt 0:00:00] [#]} 41. bxc3 $1 {[%emt 0:05:45]} Rxc3 {[%emt 0:06:47]} 42. Rxc3 {[%emt 0:03:16]} Rxc3 {[%emt 0:01:23]} 43. Rxc3 {[%emt 0:15:36]} bxc3 {[%emt 0:00:19]} 44. Ke3 {[%emt 0:00:21]} Kh5 {[%emt 0:01:44]} 45. Kd3 {[%emt 0:02:20]} Kg4 {[%emt 0:00:19]} 46. Kxc3 {[%emt 0:00:17]} Kxg3 {[%emt 0:00:11]} 47. e3 {[%emt 0:00:06]} Kxh4 {[%emt 0:01:53]} 48. Kd3 {[%emt 0:00:55]} Kh3 {[%emt 0:14:37]} 49. Kd4 {[%emt 0:02:49]} Kg2 {[%emt 0:03:22]} 50. Ke4 {[%emt 0:01:38]} Kf2 {[%emt 0:01:48]} 51. Kd4 {[%emt 0:00:34]} Ke1 {[%emt 0:01:31]} 52. Kd3 {[%emt 0:06:39]} Kf1 {[%emt 0:01:53]} 53. Kd4 {[%emt 0:01:12]} Ke1 {[%emt 0:01:15]} 54. Kd3 {[%emt 0:00:20]} Kf1 {[%emt 0:00:33]} 55. Kd4 {[%emt 0:00:43]} Ke2 {[%emt 0:00:30]} 56. Ke4 {[%emt 0:00:06]} Ke1 {[%emt 0:00:29]} 57. Kd3 {[%emt 0:00:29]} 1/2-1/2